fUSD/lending_fUSD_20240526
["ID","MTS","AMOUNT","RATE_DAILY","PERIOD"]
[327941421,1716689447951,-1317.756576,0.0002888,7]
[327941422,1716689447966,-1317.756576,0.0002888,7]
[327941423,1716689447981,-1317.756576,0.0002888,7]
[327941424,1716689447997,-1317.756576,0.0002888,7]
[327941425,1716689448011,-251.568921,0.0002888,7]
[327941426,1716689448026,-151.0,0.0002888,7]
[327941427,1716689448041,-251.568921,0.0002888,7]
[327941428,1716689448056,-151.0,0.0002888,7]
[327941429,1716689448070,-251.568921,0.0002888,7]
[327941430,1716689448086,-251.568921,0.0002888,7]
[327941431,1716689448100,-151.0,0.0002888,7]
[327941432,1716689448116,-151.0,0.0002888,7]
[327941433,1716689448131,-151.0,0.0002888,7]
[327941434,1716689448146,-239.621919,0.0002888,7]
[327941435,1716689448160,-155.225501,0.0002888,7]
[327941436,1716689448175,-151.0,0.0002888,7]
[327941437,1716689448190,-151.0,0.0002888,7]
[327941438,1716689448204,-155.225501,0.0002888,7]
[327941439,1716689448219,-151.0,0.0002888,7]
[327941440,1716689448233,-151.0,0.0002888,7]
[327941441,1716689448249,-541.236568,0.0002888,7]
[327941442,1716689448265,-541.236568,0.0002888,7]
[327941443,1716689448276,-153.481883,0.0002888,7]
[327941444,1716689448286,-766.105193,0.0002888,7]
[327941445,1716689448296,-151.0,0.0002888,7]
[327941446,1716689448305,-766.105193,0.0002888,7]
[327941447,1716689448315,-151.0,0.0002888,7]
[327941448,1716689448324,-151.0,0.0002888,7]
[327941449,1716689448334,-151.0,0.0002888,7]
[327941450,1716689448343,-151.0,0.0002888,7]
[327941451,1716689448353,-151.0,0.0002888,7]
[327941452,1716689448363,-191.133281,0.0002888,7]
[327941453,1716689448372,-478.38845,0.0002888,7]
[327941454,1716689448383,-478.38845,0.0002888,7]
[327941455,1716689448695,-206.332353,0.0002888,7]
[327941456,1716689448728,-151.0,0.0002888,7]
[327941457,1716689448748,-206.332353,0.0002888,7]
[327941458,1716689448759,-153.424859,0.0002888,7]
[327941459,1716689448769,-151.0,0.0002888,7]
[327941460,1716689448778,-707.351907,0.0002888,7]
[327941461,1716689448787,-707.351907,0.0002888,7]
[327941462,1716689448796,-604.074004,0.0002888,7]
[327941463,1716689448806,-151.0,0.0002888,7]
[327941464,1716689448815,-151.0,0.0002888,7]
[327941465,1716689448824,-151.0,0.0002888,7]
[327941466,1716689448833,-604.074004,0.0002888,7]
[327941467,1716689448842,-677.730599,0.0002888,7]
[327941468,1716689448852,-677.730599,0.0002888,7]
[327941469,1716689448861,-291.886785,0.0002888,7]
[327941470,1716689448870,-291.886785,0.0002888,7]
[327941471,1716689448879,-200.441289,0.0002888,7]
[327941472,1716689448888,-200.441289,0.0002888,7]
[327941473,1716689448898,-1526.097228,0.0002888,7]
[327941474,1716689448907,-151.0,0.0002888,7]
[327941475,1716689448916,-240.465049,0.0002888,7]
[327941476,1716689448925,-1526.097228,0.0002888,7]
[327941477,1716689448935,-151.0,0.0002888,7]
[327941478,1716689448944,-151.0,0.0002888,7]
[327941479,1716689448953,-240.465049,0.0002888,7]
[327941480,1716689448963,-895.823875,0.0002888,7]
[327941481,1716689448973,-151.0,0.0002888,7]
[327941482,1716689448983,-165.185865,0.0002888,7]
[327941483,1716689448992,-895.823875,0.0002888,7]
[327941484,1716689449002,-165.185865,0.0002888,7]
[327941485,1716689449011,-151.0,0.0002888,7]
[327941486,1716689449022,-182.026073,0.0002888,7]
[327941487,1716689449031,-182.026073,0.0002888,7]
[327941488,1716689449041,-1335.529215,0.0002888,7]
[327941489,1716689449050,-1335.529215,0.0002888,7]
[327941490,1716689449059,-323.013842,0.0002888,7]
[327941491,1716689449069,-323.013842,0.0002888,7]
[327941492,1716689449078,-7984.781388,0.0002888,7]
[327941493,1716689449087,-151.0,0.0002888,7]
[327941494,1716689449097,-7984.781388,0.0002888,7]
[327941495,1716689449106,-151.0,0.0002888,7]
[327941496,1716689449116,-151.0,0.0002888,7]
[327941497,1716689449125,-151.0,0.0002888,7]
[327941498,1716689449134,-151.0,0.0002888,7]
[327941499,1716689449143,-151.0,0.0002888,7]
[327941500,1716689449153,-193.509332,0.0002888,7]
[327941501,1716689449162,-192.631303,0.0002888,7]
[327941502,1716689449172,-193.509332,0.0002888,7]
[327941503,1716689449181,-193.438553,0.0002888,7]
[327941504,1716689449190,-193.438553,0.0002888,7]
[327941505,1716689449199,-900.0,0.00028889,2]
[327941506,1716689449209,-220.0,0.0002889,2]
[327941507,1716689449218,-150.0,0.00028895,2]
[327941508,1716689449227,-10000.0,0.000289,2]
[327941509,1716689449237,-150.0,0.00028908,2]
[327941510,1716689449247,-150.0,0.00028925,2]
[327941511,1716689449256,-150.0,0.00028926,2]
[327941512,1716689449265,-150.0,0.00028934,2]
[327941513,1716689449275,-150.0,0.00028939,2]
[327941514,1716689449284,-300.0,0.00028942,2]
[327941515,1716689449293,-150.0,0.00028969,2]
[327941516,1716689449302,-150.5,0.0002897,15]
[327941517,1716689449312,-152.0,0.0002897,4]
[327941518,1716689449321,-150.5,0.0002898,15]
[327941519,1716689449331,-150.5,0.0002899,15]
[327941520,1716689449340,-151.0,0.00028992,4]
[327941521,1716689449349,-1483.30909317,0.00029,2]
[327941522,1716689449359,-500000.0,0.00029,2]
[327941523,1716689449368,-5000.0,0.00029,2]
[327941524,1716689449378,-1800.0,0.00029,30]
[327941525,1716689449387,-18749.93984665,0.00029,2]
[327941526,1716689449397,-151.0,0.00029,7]
[327941527,1716689449406,-151.0,0.00029,7]
[327941528,1716689449415,-151.0,0.00029,7]
[327941529,1716689449425,-151.0,0.00029,7]
[327941530,1716689449434,-151.0,0.00029,7]
[327941531,1716689449448,-151.0,0.00029,7]
[327941532,1716689449457,-152.389114,0.00029,7]
[327941533,1716689449468,-151.0,0.00029,7]
[327941534,1716689449478,-232.825737,0.00029,7]
[327941535,1716689449487,-151.0,0.00029,7]
[327941536,1716689449496,-151.0,0.00029,7]
[327941537,1716689449506,-151.0,0.00029,7]
[327941538,1716689449517,-184.784921,0.00029,7]
[327941539,1716689449527,-151.0,0.00029,7]
[327941540,1716689449536,-256.090157,0.00029,7]
[327941541,1716689449545,-151.0,0.00029,7]
[327941542,1716689449555,-1042.325451,0.00029,7]
[327941543,1716689449564,-151.0,0.00029,7]
[327941544,1716689449573,-151.0,0.00029,7]
[327941545,1716689449583,-151.0,0.00029,7]
[327941546,1716689449592,-151.0,0.00029,7]
[327941547,1716689449601,-151.0,0.00029,7]
[327941548,1716689449611,-195.439331,0.00029,7]
[327941549,1716689449620,-195.439331,0.00029,7]
[327941550,1716689449629,-151.0,0.00029,7]
[327941551,1716689449639,-885.357674,0.00029,7]
[327941552,1716689449651,-885.357674,0.00029,7]
[327941553,1716689449660,-799.110548,0.00029,7]
[327941554,1716689449669,-799.110548,0.00029,7]
[327941555,1716689449678,-360.472833,0.00029,7]
[327941556,1716689449687,-360.472833,0.00029,7]
[327941557,1716689449696,-1312.443375,0.00029,7]
[327941558,1716689449706,-1312.443375,0.00029,7]
[327941559,1716689449715,-319.818968,0.00029,7]
[327941560,1716689449726,-319.818968,0.00029,7]
[327941561,1716689449735,-151.0,0.00029,7]
[327941562,1716689449744,-151.0,0.00029,7]
[327941563,1716689449754,-236.788383,0.00029,7]
[327941564,1716689449763,-236.788383,0.00029,7]
[327941565,1716689449772,-151.0,0.00029,7]
[327941566,1716689449781,-151.0,0.00029,7]
[327941567,1716689449790,-151.0,0.00029,7]
[327941568,1716689449799,-151.0,0.00029,7]
[327941569,1716689449808,-258.858072,0.00029,7]
[327941570,1716689449816,-151.0,0.00029,7]
[327941571,1716689449826,-258.858072,0.00029,7]
[327941572,1716689449835,-1317.756576,0.00029,7]
[327941573,1716689449843,-1317.756576,0.00029,7]
[327941574,1716689449852,-251.568921,0.00029,7]
[327941575,1716689449861,-151.0,0.00029,7]
[327941576,1716689449870,-251.568921,0.00029,7]
[327941577,1716689449879,-151.0,0.00029,7]
[327941578,1716689449887,-151.0,0.00029,7]
[327941579,1716689449896,-155.225501,0.00029,7]
[327941580,1716689449905,-151.0,0.00029,7]
[327941581,1716689449913,-155.225501,0.00029,7]
[327941582,1716689449922,-151.0,0.00029,7]
[327941583,1716689449931,-541.236568,0.00029,7]
[327941584,1716689449940,-541.236568,0.00029,7]
[327941585,1716689449949,-766.105193,0.00029,7]
[327941586,1716689449958,-151.0,0.00029,7]
[327941587,1716689449966,-766.105193,0.00029,7]
[327941588,1716689449976,-151.0,0.00029,7]
[327941589,1716689449985,-151.0,0.00029,7]
[327941590,1716689449994,-184.887721,0.00029,7]
[327941591,1716689450003,-151.0,0.00029,7]
[327941592,1716689450012,-151.0,0.00029,7]
[327941593,1716689450021,-478.38845,0.00029,7]
[327941594,1716689450030,-478.38845,0.00029,7]
[327941595,1716689450039,-206.332353,0.00029,7]
[327941596,1716689450048,-151.0,0.00029,7]
[327941597,1716689450057,-206.332353,0.00029,7]
[327941598,1716689450065,-151.0,0.00029,7]
[327941599,1716689450074,-707.351907,0.00029,7]
[327941600,1716689450084,-707.351907,0.00029,7]
[327941601,1716689450093,-604.074004,0.00029,7]
[327941602,1716689450102,-151.0,0.00029,7]
[327941603,1716689450111,-239.80347,0.00029,7]
[327941604,1716689450120,-205.069168,0.00029,7]
[327941605,1716689450128,-604.074004,0.00029,7]
[327941606,1716689450137,-677.730599,0.00029,7]
[327941607,1716689450146,-677.730599,0.00029,7]
[327941608,1716689450155,-291.886785,0.00029,7]
[327941609,1716689450164,-291.886785,0.00029,7]
[327941610,1716689450173,-200.441289,0.00029,7]
[327941611,1716689450181,-200.441289,0.00029,7]
[327941612,1716689450191,-1526.097228,0.00029,7]
[327941613,1716689450199,-151.0,0.00029,7]
[327941614,1716689450208,-240.465049,0.00029,7]
[327941615,1716689450218,-1526.097228,0.00029,7]
[327941616,1716689450227,-151.0,0.00029,7]
[327941617,1716689450236,-151.0,0.00029,7]
[327941618,1716689450245,-240.465049,0.00029,7]
[327941619,1716689450253,-895.823875,0.00029,7]
[327941620,1716689450262,-151.0,0.00029,7]
[327941621,1716689450271,-165.185865,0.00029,7]
[327941622,1716689450280,-895.823875,0.00029,7]
[327941623,1716689450288,-165.185865,0.00029,7]
[327941624,1716689450297,-151.0,0.00029,7]
[327941625,1716689450306,-182.026073,0.00029,7]
[327941626,1716689450315,-182.026073,0.00029,7]
[327941627,1716689450323,-1335.529215,0.00029,7]
[327941628,1716689450332,-1335.529215,0.00029,7]
[327941629,1716689450341,-323.013842,0.00029,7]
[327941630,1716689450350,-323.013842,0.00029,7]
[327941631,1716689450359,-7984.781388,0.00029,7]
[327941632,1716689450367,-151.0,0.00029,7]
[327941633,1716689450376,-7984.781388,0.00029,7]
[327941634,1716689450385,-151.0,0.00029,7]
[327941635,1716689450394,-151.0,0.00029,7]
[327941636,1716689450403,-151.0,0.00029,7]
[327941637,1716689450412,-151.0,0.00029,7]
[327941638,1716689450421,-233.285064,0.00029,7]
[327941639,1716689450430,-193.509332,0.00029,7]
[327941640,1716689450443,-193.509332,0.00029,7]
[327941641,1716689450452,-193.438553,0.00029,7]
[327941642,1716689450461,-193.438553,0.00029,7]
[327941643,1716689450471,-150.0,0.00029012,2]
[327941644,1716689450480,-161.67987442,0.00029014,30]
[327941645,1716689450488,-1754.24,0.00029014,4]
[327941646,1716689450497,-150.0,0.00029034,2]
[327941647,1716689450506,-150.0,0.00029047,2]
[327941648,1716689450517,-150.0,0.00029049,2]
[327941649,1716689450526,-150.0,0.00029058,2]
[327941650,1716689450535,-150.0,0.00029081,2]
[327941651,1716689450544,-150.0,0.00029087,2]
[327941652,1716689450554,-150.0,0.0002914,2]
[327941653,1716689450563,-150.0,0.00029147,2]
[327941654,1716689450572,-150.0,0.00029151,2]
[327941655,1716689450581,-6315.30563994,0.00029162,2]
[327941656,1716689450590,-200.0,0.00029169,2]
[327941657,1716689450599,-150.0,0.00029183,2]
[327941658,1716689450608,-150.0,0.00029272,2]
[327941659,1716689450617,-3098.24951254,0.00029294,2]
[327941660,1716689450626,-150.0,0.00029299,2]
[327941661,1716689450635,-150.0,0.000293,6]
[327941662,1716689450644,-300.0,0.00029313,2]
[327941663,1716689450653,-150.0,0.0002932,2]
[327941664,1716689450662,-11604.32610441,0.00029327,2]
[327941665,1716689450671,-150.0,0.00029365,2]
[327941666,1716689450681,-150.0,0.00029376,2]
[327941667,1716689450690,-150.0,0.00029376,2]
[327941668,1716689450699,-150.0,0.00029384,2]
[327941669,1716689450708,-1001.28847308,0.000294,2]
[327941670,1716689450718,-1500.0,0.00029415,2]
[327941671,1716689450727,-161.67987442,0.00029425,30]
[327941672,1716689450737,-150.0,0.00029431,2]
[327941673,1716689450746,-150.0,0.00029439,2]
[327941674,1716689450755,-150.0,0.00029449,2]
[327941675,1716689450766,-150.0,0.00029451,2]
[327941676,1716689450775,-11627.17355561,0.0002949,2]
[327941677,1716689450784,-150.0,0.00029494,2]
[327941678,1716689450795,-226.86236826,0.000295,3]
[327941679,1716689450804,-1000.0,0.000295,2]
[327941680,1716689450814,-150.0,0.00029529,2]
[327941681,1716689450824,-150.0,0.00029548,2]
[327941682,1716689450834,-346.81160788,0.00029566,2]
[327941683,1716689450843,-150.0,0.00029568,2]
[327941684,1716689450855,-151.0,0.00029584,2]
[327941685,1716689450864,-150.0,0.00029634,2]
[327941686,1716689450873,-150.0,0.0002967,2]
[327941687,1716689450883,-3903.0381456,0.00029684,2]
[327941688,1716689450895,-300.0,0.00029684,2]
[327941689,1716689450904,-150.0,0.00029686,2]
[327941690,1716689450914,-870.49,0.00029693,2]
[327941691,1716689450924,-870.49,0.00029693,2]
[327941692,1716689450934,-886.35,0.00029693,2]
[327941693,1716689450945,-423.44,0.00029693,2]
[327941694,1716689450955,-870.49,0.00029693,2]
[327941695,1716689450965,-415.94,0.00029693,2]
[327941696,1716689450976,-870.49,0.00029693,2]
[327941697,1716689450986,-415.94,0.00029693,2]
[327941698,1716689450996,-415.94,0.00029693,2]
[327941699,1716689451007,-870.49,0.00029693,2]
[327941700,1716689451016,-415.94,0.00029693,2]
[327941701,1716689451027,-415.94,0.00029693,2]
[327941702,1716689451036,-870.49,0.00029693,2]
[327941703,1716689451046,-415.94,0.00029693,2]
[327941704,1716689451055,-870.49,0.00029693,2]
[327941705,1716689451065,-415.94,0.00029693,2]
[327941706,1716689451074,-831.73,0.00029693,2]
[327941707,1716689451085,-870.49,0.00029693,2]
[327941708,1716689451096,-870.49,0.00029693,2]
[327941709,1716689451106,-870.49,0.00029693,2]
[327941710,1716689451115,-870.49,0.00029693,2]
[327941711,1716689451124,-870.49,0.00029693,2]
[327941712,1716689451134,-829.83,0.00029693,2]
[327941713,1716689451143,-415.94,0.00029693,2]
[327941714,1716689451152,-150.0,0.00029695,2]
[327941715,1716689451162,-1000.0,0.000297,2]
[327941716,1716689451172,-150.0,0.00029744,2]
[327941717,1716689451181,-150.0,0.00029747,2]
[327941718,1716689451190,-184.9785759,0.00029758,2]
[327941719,1716689451199,-150.0,0.00029765,2]
[327941720,1716689451208,-150.0,0.00029777,2]
[327941721,1716689451218,-486.0,0.000298,14]
[327941722,1716689451227,-344.0,0.000298,2]
[327941723,1716689451237,-189.0,0.000298,14]
[327941724,1716689451247,-2000.0,0.000298,2]
[327941725,1716689451256,-150.0,0.000298,2]
[327941726,1716689451265,-2000.0,0.000298,2]
[327941727,1716689451275,-2008.03183472,0.000298,2]
[327941728,1716689451284,-353.0,0.000298,2]
[327941729,1716689451294,-275.5,0.000298,2]
[327941730,1716689451303,-150.0,0.000298,6]
[327941731,1716689451312,-170.59,0.00029818,2]
[327941732,1716689451322,-300.0,0.00029823,2]
[327941733,1716689451331,-151.0,0.00029858,7]
[327941734,1716689451340,-151.0,0.00029858,7]
[327941735,1716689451350,-151.0,0.00029858,7]
[327941736,1716689451359,-151.0,0.00029858,7]
[327941737,1716689451368,-151.0,0.00029858,7]
[327941738,1716689451377,-151.0,0.00029858,7]
[327941739,1716689451386,-151.0,0.00029858,7]
[327941740,1716689451396,-151.0,0.00029858,7]
[327941741,1716689451405,-154.177193,0.00029858,7]
[327941742,1716689451414,-151.0,0.00029858,7]
[327941743,1716689451423,-184.784921,0.00029858,7]
[327941744,1716689451432,-151.0,0.00029858,7]
[327941745,1716689451446,-178.383551,0.00029858,7]
[327941746,1716689451455,-1042.325451,0.00029858,7]
[327941747,1716689451464,-1042.325451,0.00029858,7]
[327941748,1716689451474,-151.0,0.00029858,7]
[327941749,1716689451485,-151.0,0.00029858,7]
[327941750,1716689451494,-151.0,0.00029858,7]
[327941751,1716689451503,-1500.0,0.00029858,5]
[327941752,1716689451513,-1500.0,0.00029858,6]
[327941753,1716689451522,-1500.0,0.00029858,7]
[327941754,1716689451532,-1500.0,0.00029858,8]
[327941755,1716689451543,-1500.0,0.00029858,9]
[327941756,1716689451554,-1500.0,0.00029858,10]
[327941757,1716689451563,-1500.0,0.00029858,11]
[327941758,1716689451575,-1500.0,0.00029858,12]
[327941759,1716689451585,-1500.0,0.00029858,13]
[327941760,1716689451595,-1500.0,0.00029858,14]
[327941761,1716689451604,-1450.20085714,0.00029858,15]
[327941762,1716689451615,-151.0,0.00029858,7]
[327941763,1716689451625,-151.0,0.00029858,7]
[327941764,1716689451636,-195.439331,0.00029858,7]
[327941765,1716689451645,-195.439331,0.00029858,7]
[327941766,1716689451655,-151.0,0.00029858,7]
[327941767,1716689451664,-885.357674,0.00029858,7]
[327941768,1716689451673,-885.357674,0.00029858,7]
[327941769,1716689451684,-799.110548,0.00029858,7]
[327941770,1716689451693,-360.472833,0.00029858,7]
[327941771,1716689451854,-799.110548,0.00029858,7]
[327941772,1716689451874,-360.472833,0.00029858,7]
[327941773,1716689451884,-1312.443375,0.00029858,7]
[327941774,1716689451895,-1312.443375,0.00029858,7]
[327941775,1716689451906,-319.818968,0.00029858,7]
[327941776,1716689451916,-319.818968,0.00029858,7]
[327941777,1716689451926,-151.0,0.00029858,7]
[327941778,1716689451937,-152.925548,0.00029858,7]
[327941779,1716689451946,-236.788383,0.00029858,7]
[327941780,1716689451956,-236.788383,0.00029858,7]
[327941781,1716689451966,-151.0,0.00029858,7]
[327941782,1716689451976,-151.0,0.00029858,7]
[327941783,1716689451986,-151.0,0.00029858,7]
[327941784,1716689451995,-151.0,0.00029858,7]
[327941785,1716689452004,-258.858072,0.00029858,7]
[327941786,1716689452014,-151.0,0.00029858,7]
[327941787,1716689452022,-258.858072,0.00029858,7]
[327941788,1716689452032,-1317.756576,0.00029858,7]
[327941789,1716689452042,-1317.756576,0.00029858,7]
[327941790,1716689452051,-151.0,0.00029858,7]
[327941791,1716689452060,-251.568921,0.00029858,7]
[327941792,1716689452070,-251.568921,0.00029858,7]
[327941793,1716689452079,-151.0,0.00029858,7]
[327941794,1716689452088,-151.0,0.00029858,7]
[327941795,1716689452098,-155.225501,0.00029858,7]
[327941796,1716689452108,-151.0,0.00029858,7]
[327941797,1716689452117,-155.225501,0.00029858,7]
[327941798,1716689452127,-151.0,0.00029858,7]
[327941799,1716689452136,-541.236568,0.00029858,7]
[327941800,1716689452146,-541.236568,0.00029858,7]
[327941801,1716689452155,-766.105193,0.00029858,7]
[327941802,1716689452165,-151.0,0.00029858,7]
[327941803,1716689452174,-766.105193,0.00029858,7]
[327941804,1716689452184,-278.334489,0.00029858,7]
[327941805,1716689452194,-151.0,0.00029858,7]
[327941806,1716689452203,-151.0,0.00029858,7]
[327941807,1716689452213,-151.0,0.00029858,7]
[327941808,1716689452225,-478.38845,0.00029858,7]
[327941809,1716689452234,-478.38845,0.00029858,7]
[327941810,1716689452244,-206.332353,0.00029858,7]
[327941811,1716689452253,-151.0,0.00029858,7]
[327941812,1716689452263,-206.332353,0.00029858,7]
[327941813,1716689452272,-151.0,0.00029858,7]
[327941814,1716689452282,-707.351907,0.00029858,7]
[327941815,1716689452291,-707.351907,0.00029858,7]
[327941816,1716689452301,-604.074004,0.00029858,7]
[327941817,1716689452310,-151.0,0.00029858,7]
[327941818,1716689452319,-604.074004,0.00029858,7]
[327941819,1716689452329,-677.730599,0.00029858,7]
[327941820,1716689452338,-677.730599,0.00029858,7]
[327941821,1716689452348,-291.886785,0.00029858,7]
[327941822,1716689452358,-291.886785,0.00029858,7]
[327941823,1716689452367,-200.441289,0.00029858,7]
[327941824,1716689452377,-200.441289,0.00029858,7]
[327941825,1716689452386,-1526.097228,0.00029858,7]
[327941826,1716689452396,-151.0,0.00029858,7]
[327941827,1716689452405,-240.465049,0.00029858,7]
[327941828,1716689452414,-1526.097228,0.00029858,7]
[327941829,1716689452424,-197.275,0.00029858,7]
[327941830,1716689452434,-151.0,0.00029858,7]
[327941831,1716689452450,-240.465049,0.00029858,7]
[327941832,1716689452460,-895.823875,0.00029858,7]
[327941833,1716689452471,-151.0,0.00029858,7]
[327941834,1716689452481,-165.185865,0.00029858,7]
[327941835,1716689452493,-895.823875,0.00029858,7]
[327941836,1716689452502,-165.185865,0.00029858,7]
[327941837,1716689452512,-151.0,0.00029858,7]
[327941838,1716689452523,-182.026073,0.00029858,7]
[327941839,1716689452533,-182.026073,0.00029858,7]
[327941840,1716689452542,-1335.529215,0.00029858,7]
[327941841,1716689452551,-1335.529215,0.00029858,7]
[327941842,1716689452561,-323.013842,0.00029858,7]
[327941843,1716689452570,-323.013842,0.00029858,7]
[327941844,1716689452581,-7984.781388,0.00029858,7]
[327941845,1716689452590,-151.0,0.00029858,7]
[327941846,1716689452600,-7984.781388,0.00029858,7]
[327941847,1716689452609,-151.0,0.00029858,7]
[327941848,1716689452619,-291.240015,0.00029858,7]
[327941849,1716689452629,-151.0,0.00029858,7]
[327941850,1716689452639,-151.0,0.00029858,7]
[327941851,1716689452648,-193.509332,0.00029858,7]
[327941852,1716689452658,-193.509332,0.00029858,7]
[327941853,1716689452667,-193.438553,0.00029858,7]
[327941854,1716689452676,-193.438553,0.00029858,7]
[327941855,1716689452686,-11604.32610441,0.00029875,2]
[327941856,1716689452695,-150.0,0.00029885,2]
[327941857,1716689452705,-1000.0,0.00029891,2]
[327941858,1716689452714,-150.0,0.00029894,2]
[327941859,1716689452724,-46494.8972823,0.000299,2]
[327941860,1716689452733,-151.0,0.000299,7]
[327941861,1716689452742,-6260.7,0.00029901,2]
[327941862,1716689452752,-150.0,0.00029912,2]
[327941863,1716689452762,-150.0,0.00029946,2]
[327941864,1716689452771,-150.0,0.00029966,2]
[327941865,1716689452780,-400.0,0.0002997,2]
[327941866,1716689452790,-400.0,0.0002997,2]
[327941867,1716689452799,-400.0,0.0002997,2]
[327941868,1716689452808,-300.0,0.0002997,2]
[327941869,1716689452818,-400.0,0.0002997,2]
[327941870,1716689452827,-400.0,0.0002997,2]
[327941871,1716689452837,-400.0,0.0002997,2]
[327941872,1716689452846,-703.1762281,0.0002997,2]
[327941873,1716689452855,-401.27834781,0.0002997,2]
[327941874,1716689452865,-500.0,0.00029973,2]
[327941875,1716689452874,-500.0,0.00029973,2]
[327941876,1716689452884,-500.0,0.00029973,2]
[327941877,1716689452893,-500.0,0.00029973,2]
[327941878,1716689452903,-500.0,0.00029973,2]
[327941879,1716689452913,-500.0,0.00029973,2]
[327941880,1716689452922,-500.0,0.00029973,2]
[327941881,1716689452932,-500.0,0.00029973,2]
[327941882,1716689452941,-500.0,0.00029973,2]
[327941883,1716689452951,-500.0,0.00029973,2]
[327941884,1716689452961,-500.0,0.00029973,2]
[327941885,1716689452970,-500.0,0.00029973,2]
[327941886,1716689452980,-151.0,0.00029984,7]
[327941887,1716689452990,-151.0,0.00029984,7]
[327941888,1716689453000,-151.0,0.00029984,7]
[327941889,1716689453010,-478.38845,0.00029984,7]
[327941890,1716689453019,-478.38845,0.00029984,7]
[327941891,1716689453029,-206.332353,0.00029984,7]
[327941892,1716689453038,-151.0,0.00029984,7]
[327941893,1716689453047,-206.332353,0.00029984,7]
[327941894,1716689453057,-153.362343,0.00029984,7]
[327941895,1716689453067,-707.351907,0.00029984,7]
[327941896,1716689453076,-707.351907,0.00029984,7]
[327941897,1716689453086,-604.074004,0.00029984,7]
[327941898,1716689453096,-151.0,0.00029984,7]
[327941899,1716689453106,-604.074004,0.00029984,7]
[327941900,1716689453116,-677.730599,0.00029984,7]
[327941901,1716689453126,-677.730599,0.00029984,7]
[327941902,1716689453136,-291.886785,0.00029984,7]
[327941903,1716689453145,-291.886785,0.00029984,7]
[327941904,1716689453155,-200.441289,0.00029984,7]
[327941905,1716689453164,-200.441289,0.00029984,7]
[327941906,1716689453174,-1526.097228,0.00029984,7]
[327941907,1716689453184,-151.0,0.00029984,7]
[327941908,1716689453193,-240.465049,0.00029984,7]
[327941909,1716689453203,-1526.097228,0.00029984,7]
[327941910,1716689453212,-151.0,0.00029984,7]
[327941911,1716689453222,-240.465049,0.00029984,7]
[327941912,1716689453231,-895.823875,0.00029984,7]
[327941913,1716689453242,-151.0,0.00029984,7]
[327941914,1716689453252,-165.185865,0.00029984,7]
[327941915,1716689453261,-895.823875,0.00029984,7]
[327941916,1716689453271,-165.185865,0.00029984,7]
[327941917,1716689453280,-151.0,0.00029984,7]
[327941918,1716689453289,-182.026073,0.00029984,7]
[327941919,1716689453299,-182.026073,0.00029984,7]
[327941920,1716689453308,-1335.529215,0.00029984,7]